bitfinex-derivatives/quotes_BTCF0:USTF0_20210406
["timestamp","ask_amount","ask_price","bid_price","bid_amount"]
[1617721625208,3.0553,57838.0,57832.0,0.10725655]
[1617721625409,0.10725655,57833.0,57832.0,0.10725655]
[1617721630018,0.10725655,57833.0,57832.0,0.30725655]
[1617721630817,0.10725655,57833.0,57832.0,0.10725655]
[1617721633417,0.4685,57848.0,57832.0,0.10725655]
[1617721633617,0.4685,57848.0,57832.0,0.21009655]
[1617721634418,0.4685,57848.0,57842.0,3.2345]
[1617721635117,0.4685,57848.0,57845.0,1.0]
[1617721635319,0.4685,57848.0,57845.0,1.35917]
[1617721635518,0.4685,57848.0,57847.0,1.30725655]
[1617721636321,0.10725655,57852.0,57847.0,0.30725655]
[1617721636721,0.10725655,57852.0,57851.0,0.2]
[1617721636920,0.10725655,57852.0,57851.0,1.0]
[1617721637121,0.77850965,57852.0,57851.0,1.0]
[1617721637320,0.77850965,57852.0,57849.0,1.0]
[1617721637524,0.6712531,57852.0,57847.0,0.10725655]
[1617721638121,0.30503451,57848.0,57847.0,0.10725655]
[1617721638621,0.30503451,57848.0,57847.0,1.41227755]
[1617721638822,0.30503451,57848.0,57847.0,0.41227755]
[1617721640523,0.30503451,57848.0,57847.0,0.10725655]
[1617721642226,0.30503451,57848.0,57847.0,0.41242137]
[1617721643627,0.0102738,57848.0,57847.0,0.77840372]
[1617721644127,0.00518775,57848.0,57847.0,0.77840372]
[1617721644627,0.01027377,57849.0,57847.0,0.77840372]
[1617721644928,0.01027377,57849.0,57847.0,0.41242137]
[1617721644929,0.01027375,57848.0,57847.0,0.41242137]
[1617721645929,0.30526253,57849.0,57847.0,0.41242137]
[1617721646331,0.30526612,57848.0,57847.0,0.41242137]
[1617721647531,0.41252267,57848.0,57847.0,0.41242137]
[1617721648132,1.02517349,57848.0,57847.0,0.77946536]
[1617721650337,0.91791694,57848.0,57847.0,0.77946536]
[1617721651037,0.67248816,57848.0,57847.0,0.77946536]
[1617721651536,0.91791566,57848.0,57847.0,0.77946536]
[1617721652039,0.67248816,57848.0,57847.0,0.77946536]
[1617721652237,0.67248816,57848.0,57847.0,1.77946536]
[1617721652437,0.917913,57848.0,57847.0,1.77946536]
[1617721652637,0.917913,57848.0,57847.0,1.90214536]
[1617721652940,0.67248816,57848.0,57847.0,1.90214536]
[1617721653140,0.91790975,57848.0,57847.0,1.90214536]
[1617721653638,0.67248816,57848.0,57847.0,1.90214536]
[1617721654942,0.30526612,57848.0,57847.0,1.90214536]
[1617721655644,0.30526612,57848.0,57847.0,1.77946536]
[1617721655844,0.67227615,57848.0,57847.0,1.77946536]
[1617721657448,0.67227615,57848.0,57847.0,1.88251536]
[1617721658150,0.67207615,57848.0,57847.0,1.88251536]
[1617721659249,0.67207615,57848.0,57847.0,5.15131536]
[1617721660048,0.30506612,57848.0,57847.0,5.15131536]
[1617721661350,0.30506612,57848.0,57847.0,5.5996784]
[1617721661750,0.00519451,57849.0,57847.0,5.5996784]
[1617721662152,0.00519451,57849.0,57848.0,1.5]
[1617721662353,0.00519628,57850.0,57848.0,3.46831252]
[1617721662554,0.00519628,57850.0,57848.0,6.77541252]
[1617721662751,0.00519628,57850.0,57849.0,2.7]
[1617721663353,0.00519595,57854.0,57849.0,4.17640062]
[1617721663654,0.00519595,57854.0,57853.0,1.80725655]
[1617721663952,0.50950897,57869.0,57853.0,1.80725655]
[1617721663953,0.00519581,57856.0,57853.0,3.62051317]
[1617721664153,0.36686504,57861.0,57853.0,3.62051317]
[1617721664154,0.00518528,57860.0,57853.0,3.68185767]
[1617721664362,0.00518528,57860.0,57856.0,0.2]
[1617721664554,0.00518528,57860.0,57859.0,1.2]
[1617721664956,0.0051853,57861.0,57859.0,1.74602756]
[1617721665262,0.0051853,57861.0,57860.0,1.0]
[1617721665559,0.0051853,57861.0,57860.0,2.86860124]
[1617721665758,0.0051853,57861.0,57860.0,3.23363089]
[1617721668059,0.0051853,57861.0,57860.0,2.86860124]
[1617721668459,0.0051815,57862.0,57860.0,3.2346236]
[1617721668858,0.0051815,57862.0,57861.0,1.0]
[1617721669059,0.0051815,57862.0,57861.0,1.42736484]
[1617721669358,0.01024036,57862.0,57861.0,2.56134454]
[1617721669962,0.01024036,57862.0,57861.0,2.92736338]
[1617721669963,0.00516714,57862.0,57861.0,2.92736338]
[1617721670261,0.01023626,57863.0,57861.0,2.56134454]
[1617721670562,0.01023626,57863.0,57861.0,1.56134454]
[1617721670763,0.01023736,57862.0,57861.0,1.5]
[1617721671162,0.36535312,57865.0,57861.0,2.86623858]
[1617721671761,0.36535312,57865.0,57861.0,1.86623858]
[1617721671962,0.36535312,57865.0,57864.0,1.0]
[1617721673164,2.5126,57861.0,57855.0,0.44763107]
[1617721673366,1.5,57860.0,57859.0,0.36629665]
[1617721673562,1.60725655,57860.0,57859.0,0.36629665]
[1617721673764,1.94630538,57856.0,57855.0,0.43483107]
[1617721673964,1.94630538,57856.0,57838.0,0.41754884]
[1617721674163,3.4861,57839.0,57838.0,0.41754884]
[1617721674466,3.60771,57839.0,57821.0,0.98980901]
[1617721674866,4.22144815,57839.0,57821.0,0.4809]
[1617721675274,0.0021232,57823.0,57821.0,0.4809]
[1617721675476,0.1134032,57823.0,57821.0,0.4809]
[1617721675670,0.04588282,57822.0,57821.0,0.4809]
[1617721676366,0.04588282,57822.0,57821.0,1.4809]
[1617721676565,0.04588282,57822.0,57821.0,0.4809]
[1617721677667,0.04588282,57822.0,57821.0,0.58815655]
[1617721678066,0.04588282,57822.0,57821.0,1.58815655]
[1617721678668,0.04588282,57822.0,57821.0,0.58815655]
[1617721679068,3.68488282,57822.0,57821.0,0.58815655]
[1617721679769,3.69507406,57822.0,57821.0,0.4809]
[1617721680372,3.68488282,57822.0,57821.0,0.4809]
[1617721686678,0.04588282,57822.0,57821.0,0.4809]
[1617721687680,2.88488282,57822.0,57821.0,0.4809]
[1617721688381,3.18762923,57822.0,57821.0,0.4809]
[1617721690985,3.18742923,57822.0,57821.0,0.4809]
[1617721692186,4.18742923,57822.0,57821.0,0.4809]
[1617721692387,3.18742923,57822.0,57821.0,0.4809]
[1617721693186,0.34842923,57822.0,57821.0,0.4809]
[1617721694287,0.59398866,57822.0,57821.0,0.4809]
[1617721694988,0.59398866,57822.0,57821.0,3.6911]
[1617721695288,0.04568282,57822.0,57821.0,3.6911]
[1617721696190,0.04568282,57822.0,57821.0,4.6911]
[1617721696788,0.04568282,57822.0,57821.0,0.4809]
[1617721699492,0.04568282,57822.0,57821.0,0.58532]
[1617721701694,0.04568282,57822.0,57821.0,0.4809]
[1617721703199,2.73638282,57822.0,57821.0,0.4809]
[1617721707904,0.04568282,57822.0,57821.0,0.4809]
[1617721708604,0.16359282,57822.0,57821.0,0.4809]
[1617721709006,0.16869611,57822.0,57821.0,0.4809]
[1617721709506,0.16359282,57822.0,57821.0,0.4809]
[1617721709906,0.10725655,57806.0,57805.0,0.035]
[1617721710306,0.23365655,57806.0,57805.0,0.035]
[1617721711411,0.10725655,57806.0,57805.0,0.035]
[1617721713510,0.10725655,57806.0,57805.0,1.035]
[1617721713711,0.10725655,57806.0,57805.0,0.035]
[1617721713912,0.20771655,57806.0,57805.0,0.035]
[1617721717113,0.10725655,57806.0,57805.0,0.035]
[1617721722117,0.10725655,57806.0,57805.0,0.14225655]
[1617721723418,0.10725655,57806.0,57805.0,0.24875655]
[1617721724020,0.11238027,57806.0,57805.0,1.37024743]
[1617721727425,0.10725655,57806.0,57805.0,1.37024743]
[1617721728326,0.10936447,57806.0,57805.0,1.37024743]
[1617721728728,0.10725655,57806.0,57805.0,1.37024743]
[1617721729229,0.11237514,57806.0,57805.0,1.37024743]
[1617721730128,0.10725655,57806.0,57805.0,1.37024743]
[1617721730629,0.1123835,57806.0,57805.0,1.37024743]
[1617721731930,0.1123835,57806.0,57805.0,1.26374743]
[1617721732533,0.4089395,57806.0,57805.0,0.81515108]
[1617721734130,0.4089395,57806.0,57805.0,0.70789453]
[1617721735332,0.4089395,57806.0,57805.0,0.76929389]
[1617721735532,0.4089395,57806.0,57805.0,0.70789453]
[1617721735934,0.77182039,57806.0,57805.0,0.76929394]
[1617721736133,0.77182039,57806.0,57805.0,1.18356768]
[1617721736432,0.77182039,57806.0,57805.0,1.12216827]
[1617721736833,1.01741628,57806.0,57805.0,1.18356724]
[1617721737537,1.01741628,57806.0,57805.0,4.26836724]
[1617721737733,0.91015973,57806.0,57805.0,4.26836724]
[1617721738034,0.30168295,57806.0,57805.0,4.26836724]
[1617721738233,0.30168295,57806.0,57805.0,4.37562379]
[1617721738436,0.01019347,57807.0,57805.0,4.97822629]
[1617721738935,0.00515208,57806.0,57805.0,4.97822629]
[1617721739336,0.00515208,57806.0,57805.0,1.89342629]
[1617721739538,0.01020755,57806.0,57805.0,1.89342629]
[1617721740040,0.01020755,57806.0,57805.0,1.80133251]
[1617721740638,0.01020755,57806.0,57805.0,2.80133251]
[1617721740840,0.00515014,57806.0,57805.0,1.80133251]
[1617721741140,0.00515014,57806.0,57805.0,2.80133251]
[1617721741339,0.01534671,57806.0,57805.0,2.80133251]
[1617721741539,0.01019657,57806.0,57805.0,2.80133251]
[1617721742139,0.01019657,57806.0,57805.0,1.80133251]
[1617721744241,0.11745312,57806.0,57805.0,1.80133251]
[1617721744442,0.11745312,57806.0,57805.0,1.94071251]
[1617721745246,0.11745312,57806.0,57805.0,2.94071251]
[1617721745447,0.11745312,57806.0,57805.0,1.94071251]
[1617721745746,0.11745312,57806.0,57805.0,1.80133251]
[1617721746548,0.40996447,57806.0,57805.0,1.29082379]
[1617721748752,0.77299896,57806.0,57805.0,1.29082379]
[1617721749553,1.01858935,57806.0,57805.0,1.29082379]
[1617721750452,0.40996447,57806.0,57805.0,1.29082379]
[1617721750853,0.46106447,57806.0,57805.0,1.29082379]
[1617721751354,0.40996447,57806.0,57805.0,1.29082379]
[1617721756764,0.40996447,57806.0,57805.0,1.44390379]
[1617721759176,0.11744828,57806.0,57805.0,1.95444929]
[1617721759672,0.10725655,57806.0,57805.0,3.45444929]
[1617721759871,0.08165655,57806.0,57805.0,4.45444929]
[1617721760171,0.08165655,57806.0,57805.0,4.54653377]
[1617721760774,0.08165655,57806.0,57805.0,7.37303377]
[1617721761673,0.08165655,57806.0,57805.0,7.51627006]
[1617721762773,0.08165655,57806.0,57805.0,5.01627006]
[1617721763177,0.08165655,57806.0,57805.0,6.01627006]
[1617721763376,0.08165655,57806.0,57805.0,5.87303377]
[1617721763876,0.08165655,57806.0,57805.0,6.0162717]
[1617721765176,0.08165655,57806.0,57805.0,7.5162717]
[1617721766780,0.00212153,57811.0,57805.0,7.5162717]
[1617721766978,0.1729542,57814.0,57805.0,7.5162717]
[1617721767180,0.1729542,57814.0,57811.0,1.69484395]
[1617721767778,0.3645367,57820.0,57814.0,1.69484395]
[1617721768178,0.36468002,57823.0,57814.0,1.69484395]
[1617721768380,0.36468002,57823.0,57813.0,4.22259249]
[1617721768381,0.36468002,57823.0,57820.0,1.69484395]
[1617721768879,0.10725655,57837.0,57820.0,1.69484395]
[1617721769078,0.10725655,57837.0,57822.0,1.0]
[1617721769280,0.10725655,57837.0,57836.0,0.12202275]
[1617721769685,0.55369188,57837.0,57836.0,0.12202275]
[1617721769980,0.55369188,57837.0,57836.0,1.12202275]
[1617721770180,0.55369188,57837.0,57836.0,1.23694275]
[1617721770381,0.55369188,57837.0,57836.0,1.3441993]
[1617721770882,0.55369188,57837.0,57836.0,0.3441993]
[1617721771382,0.55369188,57837.0,57836.0,0.2292793]
[1617721771982,0.10725655,57837.0,57836.0,0.10725655]
[1617721772985,0.15915655,57837.0,57836.0,0.10725655]
[1617721773188,0.55199768,57837.0,57836.0,0.10725655]
[1617721774086,0.55199768,57837.0,57819.0,0.44782032]
[1617721774287,0.68478768,57837.0,57818.0,0.44782315]
[1617721774488,2.7894,57825.0,57820.0,0.10725655]
[1617721774689,2.93763,57825.0,57820.0,0.10725655]
[1617721775689,2.7894,57825.0,57820.0,0.10725655]
[1617721776389,0.10725655,57821.0,57820.0,0.10725655]
[1617721780297,0.23795655,57821.0,57811.0,0.4477197]
[1617721780497,0.1307,57821.0,57814.0,0.10725655]
[1617721780696,3.1284,57815.0,57814.0,0.10725655]
[1617721781299,3.1284,57815.0,57808.0,0.4897]
[1617721782500,0.23863655,57809.0,57808.0,0.4897]
[1617721789419,1.23863655,57809.0,57804.0,0.035]
[1617721790106,1.0,57806.0,57804.0,0.035]
[1617721790507,1.0,57805.0,57804.0,0.035]
[1617721790709,1.24560299,57805.0,57804.0,0.035]
[1617721791415,1.0,57805.0,57804.0,0.035]
[1617721792610,2.5513,57805.0,57789.0,0.44792407]
[1617721793110,2.5,57805.0,57789.0,0.44792407]
[1617721793512,2.94194778,57805.0,57789.0,0.44792407]
[1617721794013,1.0,57795.0,57789.0,0.44792407]
[1617721794210,1.15391,57795.0,57790.0,0.06140428]
[1617721794610,0.10725655,57791.0,57790.0,0.06140428]
[1617721794813,0.10725655,57791.0,57788.0,0.44793106]
[1617721795211,0.10725655,57791.0,57790.0,0.427416]
[1617721795611,0.10725655,57791.0,57790.0,0.3660114]
[1617721797613,0.10725655,57791.0,57790.0,0.67101872]
[1617721799815,0.10725655,57791.0,57790.0,0.30500732]
[1617721800716,0.24592655,57791.0,57790.0,0.67102114]
[1617721801216,0.24592655,57791.0,57790.0,0.30500732]
[1617721803520,0.10725655,57791.0,57790.0,0.30500732]
[1617721805521,0.10725655,57791.0,57790.0,0.3664126]
[1617721806125,0.10725655,57791.0,57790.0,0.30500732]
[1617721809230,0.10725655,57791.0,57789.0,0.30472481]
[1617721809630,0.10725655,57791.0,57788.0,0.30446203]
[1617721811029,0.10725655,57791.0,57789.0,0.3044619]
[1617721811431,0.10725655,57791.0,57788.0,0.30445865]
[1617721811730,0.24364655,57791.0,57788.0,0.30445865]
[1617721812430,0.24364655,57791.0,57787.0,0.30446068]
[1617721813030,0.24364655,57791.0,57786.0,0.30445955]
[1617721815433,0.24364655,57791.0,57785.0,0.10725655]
[1617721816333,1.24364655,57791.0,57785.0,0.10725655]
[1617721816733,1.0,57790.0,57785.0,0.10725655]
[1617721817434,1.24364655,57791.0,57785.0,0.10725655]
[1617721817834,1.0,57790.0,57785.0,0.10725655]
[1617721818336,1.0,57790.0,57781.0,0.30436338]
[1617721818537,0.0525,57789.0,57778.0,0.36523605]
[1617721818736,0.10725655,57779.0,57778.0,0.4724926]
[1617721818937,0.24564655,57779.0,57778.0,0.4724926]
[1617721819540,0.24564655,57779.0,57778.0,0.10725655]
[1617721819737,0.24564655,57779.0,57778.0,0.41164872]
[1617721820240,0.24564655,57779.0,57778.0,0.10725655]
[1617721821240,0.24564655,57779.0,57775.0,0.30420703]
[1617721823039,0.24564655,57779.0,57774.0,0.30420708]
[1617721825245,0.24564655,57779.0,57773.0,0.30421531]
[1617721825945,0.052,57778.0,57773.0,0.30421531]
[1617721826145,0.24564655,57779.0,57773.0,0.30421531]
[1617721827247,0.24564655,57779.0,57772.0,0.30424133]
[1617721827647,0.24564655,57779.0,57773.0,0.30424211]
[1617721829153,0.24564655,57779.0,57772.0,0.30410395]
[1617721830050,0.24564655,57779.0,57771.0,0.30410179]
[1617721830550,0.24564655,57779.0,57772.0,0.30410025]
[1617721830751,0.10725655,57773.0,57772.0,0.30410025]
[1617721831753,0.10725655,57773.0,57772.0,1.11834212]
[1617721832253,0.10725655,57773.0,57772.0,0.67050909]
[1617721832652,0.10725655,57773.0,57772.0,0.73193998]
[1617721833051,0.10725655,57773.0,57772.0,0.67050909]
[1617721835256,0.10725655,57773.0,57772.0,0.73194023]
[1617721835756,0.10725655,57773.0,57772.0,0.67050909]
[1617721836155,0.10725655,57773.0,57772.0,0.73194093]
[1617721836655,0.10725655,57773.0,57772.0,0.67050909]
[1617721839662,0.10725655,57773.0,57772.0,0.30410025]
[1617721845270,0.10725655,57773.0,57772.0,0.67096431]
[1617721846671,0.10725655,57773.0,57772.0,0.80804431]
[1617721846971,0.30141395,57774.0,57772.0,3.41530086]
[1617721847270,0.30141395,57774.0,57773.0,1.0]
[1617721847471,0.30141395,57774.0,57773.0,2.5]
[1617721847671,0.30141395,57774.0,57773.0,2.7]
[1617721847875,0.30227947,57785.0,57773.0,4.17819818]
[1617721848272,0.30227947,57785.0,57784.0,0.67248465]
[1617721848481,0.30227947,57785.0,57784.0,0.88007465]
[1617721848680,0.30227947,57785.0,57784.0,1.82847465]
[1617721848873,0.30227947,57785.0,57784.0,1.9357312]
[1617721849374,0.10725655,57786.0,57784.0,1.99715503]
[1617721849576,0.10725655,57786.0,57785.0,1.0]
[1617721849774,0.30260062,57791.0,57785.0,1.0]
[1617721850175,0.30260062,57791.0,57790.0,0.30566312]
[1617721850377,0.30260062,57791.0,57790.0,1.30566312]
[1617721850976,0.30260062,57791.0,57790.0,1.47434354]
[1617721851179,0.30260062,57791.0,57790.0,0.47434354]
[1617721851379,0.30260062,57791.0,57790.0,0.41291967]
[1617721851979,0.66559822,57791.0,57790.0,0.30566312]
[1617721852380,0.66559822,57791.0,57789.0,0.30582162]
[1617721852578,0.76241822,57791.0,57789.0,0.30582162]
[1617721852780,0.6654137,57790.0,57786.0,0.30582595]
[1617721852981,0.10725655,57787.0,57786.0,0.30582595]
[1617721853280,0.77292748,57787.0,57785.0,0.3058312]
[1617721853780,0.91136108,57786.0,57783.0,0.30584034]
[1617721854181,0.66565339,57784.0,57783.0,0.30584034]
[1617721854982,0.66565339,57784.0,57782.0,0.30586376]
[1617721855983,0.66591866,57783.0,57782.0,0.30586376]
[1617721858192,0.30269947,57783.0,57782.0,0.6728912]
[1617721860290,0.10725655,57787.0,57778.0,0.59916129]
[1617721860694,0.36305542,57786.0,57783.0,0.36701843]
[1617721861093,0.30260884,57784.0,57779.0,0.44857808]
[1617721861593,0.30259757,57783.0,57779.0,0.44857808]
[1617721862093,0.30259757,57783.0,57782.0,0.67286736]
[1617721866594,0.66602156,57783.0,57782.0,0.67286736]
[1617721874307,0.66602156,57783.0,57782.0,0.79192736]
[1617721875710,0.36342399,57783.0,57782.0,0.48607856]
[1617721875911,0.9136825,57783.0,57782.0,0.79229225]
[1617721876112,0.9136825,57783.0,57782.0,0.42527369]
[1617721876311,0.66795146,57783.0,57782.0,1.09892537]
[1617721876713,0.66795146,57783.0,57782.0,0.42527369]
[1617721876914,0.30452747,57783.0,57782.0,1.09892131]
[1617721877111,0.30452747,57783.0,57782.0,2.09892131]
[1617721877413,0.30452747,57783.0,57782.0,2.54801029]
[1617721877812,0.30471155,57786.0,57782.0,2.30322246]
[1617721878011,0.36563356,57789.0,57782.0,2.30322246]
[1617721878212,0.30482771,57787.0,57786.0,1.0]
[1617721878412,0.30482771,57787.0,57782.0,1.81349662]
[1617721878615,0.30482771,57787.0,57786.0,1.0]
[1617721878815,0.30489198,57788.0,57786.0,2.18402661]
[1617721879116,0.30489198,57788.0,57787.0,0.10725655]
[1617721879315,0.30489198,57788.0,57787.0,1.29126999]
[1617721879515,0.30489198,57788.0,57787.0,2.29126999]
[1617721879715,0.3050306,57789.0,57787.0,2.29126999]
[1617721880116,0.30508556,57788.0,57787.0,1.29126999]
[1617721880517,0.30508556,57788.0,57787.0,0.10725655]
[1617721880715,0.30508556,57788.0,57787.0,1.10725655]
[1617721881015,0.30508556,57788.0,57787.0,2.22985667]
[1617721881717,0.30508556,57788.0,57787.0,2.29128127]
[1617721883520,0.30615366,57789.0,57787.0,3.79128127]
[1617721883917,0.30614101,57790.0,57788.0,0.87674542]
[1617721884119,0.30614101,57790.0,57789.0,1.5]
[1617721884419,0.10725655,57795.0,57789.0,2.6206844]
[1617721884420,0.30613974,57792.0,57789.0,2.6206844]
[1617721884619,0.30613974,57792.0,57789.0,3.6206844]
[1617721884819,0.30613974,57792.0,57789.0,2.6206844]
[1617721885120,0.30613974,57792.0,57791.0,2.12087973]
[1617721885323,0.30613974,57792.0,57791.0,3.62087973]
[1617721886021,0.30613974,57792.0,57791.0,3.77442748]
[1617721886329,0.30606076,57793.0,57791.0,3.77442748]
[1617721886724,0.0512,57821.0,57792.0,0.73466939]
[1617721886725,0.30599292,57794.0,57792.0,0.73466939]
[1617721887133,0.30599292,57794.0,57793.0,0.10725655]
[1617721887321,0.36702278,57794.0,57793.0,0.78052306]
[1617721887621,0.10725655,57796.0,57793.0,0.21217655]
[1617721887821,0.10725655,57796.0,57793.0,1.21217655]
[1617721888222,0.10725655,57796.0,57795.0,1.67326801]
[1617721888423,0.15855655,57796.0,57795.0,2.17326801]
[1617721888623,0.41321801,57796.0,57795.0,2.23468058]
[1617721888824,0.41321801,57796.0,57795.0,3.23468058]
[1617721889023,0.10725655,57796.0,57795.0,3.23468058]
[1617721890523,0.15915655,57796.0,57795.0,3.23468058]
[1617721890723,0.10725655,57796.0,57795.0,3.23468058]
[1617721891726,0.01029748,57800.0,57795.0,3.23468058]
[1617721891940,0.01029748,57800.0,57796.0,0.2]
[1617721892127,0.01029748,57800.0,57797.0,2.5]
[1617721892326,0.01029748,57800.0,57798.0,0.2]
[1617721892528,0.0102972,57803.0,57799.0,3.31496343]
[1617721892836,0.0102972,57803.0,57800.0,0.2]
[1617721893029,0.0515,57806.0,57801.0,1.5]
[1617721893227,0.0515,57806.0,57804.0,1.5]
[1617721893430,0.0515,57806.0,57805.0,0.66934463]
[1617721893629,0.0515,57806.0,57805.0,2.30244463]
[1617721893932,0.0515,57806.0,57805.0,3.50244463]
[1617721894129,0.01026434,57815.0,57805.0,3.50244463]
[1617721894331,0.01026418,57817.0,57805.0,3.19819707]
[1617721894530,0.01026418,57817.0,57810.0,1.0]
[1617721894730,0.01026418,57817.0,57811.0,1.5]
[1617721894932,0.31524222,57818.0,57816.0,1.0]
[1617721895131,0.31524222,57818.0,57817.0,0.10725655]
[1617721895333,0.30497816,57818.0,57817.0,1.10725655]
[1617721895533,0.30497816,57818.0,57817.0,1.23928655]
[1617721895734,0.30497287,57818.0,57817.0,1.23928655]
[1617721896134,0.0102639,57818.0,57817.0,1.23928655]
[1617721896333,0.0621639,57818.0,57817.0,1.23928655]
[1617721898035,0.0621639,57818.0,57817.0,2.73928655]
[1617721898736,0.0519,57818.0,57817.0,2.73928655]
[1617721900034,0.01026094,57819.0,57817.0,2.73928655]
[1617721900236,0.01027143,57818.0,57817.0,2.73928655]
[1617721900435,0.01027143,57818.0,57817.0,1.73928655]
[1617721900636,0.30519383,57819.0,57817.0,2.73928655]
[1617721901238,0.3662157,57821.0,57818.0,1.0]
[1617721901640,0.30520521,57819.0,57817.0,0.10725655]
[1617721902238,0.30508632,57818.0,57817.0,0.10725655]
[1617721902637,0.30508632,57818.0,57817.0,1.10725655]
[1617721903039,0.55069087,57818.0,57817.0,1.10725655]
[1617721903239,0.65794742,57818.0,57817.0,1.10725655]
[1617721903439,0.41234287,57818.0,57817.0,1.10725655]
[1617721905041,0.46474287,57818.0,57817.0,1.10725655]
[1617721906344,0.15965655,57818.0,57817.0,1.10725655]
[1617721906745,0.15965655,57818.0,57817.0,2.91209454]
[1617721907944,0.15965655,57818.0,57817.0,2.75401655]
[1617721908243,0.0524,57818.0,57817.0,2.75401655]
[1617721908444,0.0524,57818.0,57817.0,3.05885394]
[1617721910147,0.0524,57818.0,57817.0,2.75401655]
[1617721910451,0.0524,57818.0,57817.0,1.10725655]
[1617721914050,0.10725655,57820.0,57817.0,1.10725655]
[1617721914251,0.10725655,57820.0,57818.0,1.0]
[1617721914652,0.11748346,57820.0,57817.0,1.10725655]
[1617721914852,0.11748346,57820.0,57817.0,0.10725655]
[1617721915052,0.01022346,57819.0,57817.0,0.10725655]
[1617721915752,0.01022346,57819.0,57817.0,1.10725655]
[1617721916153,0.01022346,57819.0,57817.0,0.10725655]
[1617721916352,0.01022346,57819.0,57818.0,1.0]
[1617721916554,0.01022346,57819.0,57818.0,1.09829]
[1617721916853,0.1174842,57820.0,57818.0,1.09829]
[1617721917252,0.1174842,57820.0,57819.0,1.0]
[1617721917654,0.1174842,57820.0,57818.0,1.09829]
[1617721918056,0.1174842,57820.0,57819.0,1.0]
[1617721919258,0.10725655,57820.0,57817.0,0.10725655]
[1617721919560,0.1174949,57820.0,57817.0,0.10725655]
[1617721920358,0.01023164,57819.0,57817.0,0.10725655]
[1617721924062,0.30451511,57818.0,57817.0,0.10725655]
[1617721925362,0.66989522,57818.0,57817.0,0.10725655]
[1617721925762,0.30451511,57818.0,57817.0,0.10725655]
[1617721926662,0.41572511,57818.0,57814.0,0.30525997]
[1617721927167,0.30438071,57815.0,57812.0,0.30526386]
[1617721927564,0.41155548,57813.0,57811.0,0.30527287]
[1617721928166,0.30425365,57812.0,57811.0,0.30527287]
[1617721928565,0.30425365,57812.0,57809.0,0.42798978]
[1617721929168,0.3042301,57810.0,57809.0,0.06140202]
[1617721929568,0.66892335,57810.0,57806.0,0.30551438]
[1617721929870,1.66892335,57810.0,57806.0,0.30551438]
[1617721930571,0.6678325,57807.0,57804.0,0.30553761]
[1617721930770,1.11249371,57807.0,57800.0,0.30553343]
[1617721931369,0.30312618,57801.0,57800.0,0.30553343]
[1617721931569,0.56874273,57801.0,57800.0,0.30553343]
[1617721931868,0.56874273,57801.0,57782.0,0.10725655]
[1617721931869,0.93248238,57801.0,57798.0,0.30554459]
[1617721932372,0.66681348,57799.0,57797.0,0.30554287]
[1617721932969,0.60938578,57800.0,57798.0,0.30555789]
[1617721933470,0.30316813,57799.0,57798.0,0.30555789]
[1617721935570,0.30316813,57799.0,57797.0,0.30552588]
[1617721936372,0.60927827,57800.0,57789.0,1.01166491]
[1617721936373,0.66620754,57798.0,57795.0,0.30553771]
[1617721936873,0.30280193,57796.0,57795.0,0.30553771]
[1617721937274,0.30280193,57796.0,57789.0,0.56355655]
[1617721937275,0.30280193,57796.0,57793.0,0.36664479]
[1617721937477,0.10725655,57794.0,57793.0,0.36664479]
[1617721937675,0.11744897,57794.0,57793.0,0.36664479]
[1617721938174,0.10725655,57794.0,57793.0,0.67218294]
[1617721938876,0.11745274,57794.0,57793.0,0.67218294]
[1617721939878,0.11745274,57794.0,57793.0,0.30553815]
[1617721940778,0.11745274,57794.0,57793.0,0.67220777]
[1617721941379,0.41050369,57794.0,57793.0,0.67220777]
[1617721941578,0.53288369,57794.0,57793.0,0.67220777]
[1617721942980,0.53288369,57794.0,57793.0,0.30553815]
[1617721942981,0.89656657,57794.0,57793.0,0.30553815]
[1617721943591,3.39636657,57794.0,57792.0,0.36717014]
[1617721943889,3.39636657,57794.0,57792.0,0.30598249]
[1617721944085,3.39636657,57794.0,57791.0,0.30598329]
[1617721944086,1.35615057,57793.0,57791.0,0.30598329]
[1617721944588,0.66625527,57792.0,57790.0,0.30598545]
[1617721944786,1.0,57791.0,57790.0,0.30598545]
[1617721944983,1.35610848,57792.0,57790.0,0.30598545]
[1617721945187,1.35610848,57792.0,57790.0,0.46617545]
[1617721945399,0.91198115,57791.0,57790.0,0.46617545]
[1617721945595,0.91198115,57791.0,57790.0,0.573432]
[1617721945787,0.91198115,57791.0,57790.0,0.26744655]
[1617721946387,0.01019335,57793.0,57790.0,0.93989772]
[1617721946590,0.01019335,57793.0,57791.0,1.0]
[1617721946788,0.01019182,57792.0,57791.0,0.42820919]
[1617721947189,0.01019182,57792.0,57791.0,1.42820919]
[1617721947388,0.01019182,57792.0,57791.0,0.73386081]
[1617721948496,0.01019547,57793.0,57791.0,0.73386081]
[1617721948988,0.40999319,57794.0,57792.0,0.67243996]
[1617721949590,0.30305519,57793.0,57792.0,0.36678543]
[1617721949792,0.30305519,57793.0,57791.0,0.42821392]
[1617721949993,0.30305519,57793.0,57791.0,0.36678895]
[1617721950394,0.30305519,57793.0,57792.0,0.30565203]
[1617721950692,0.30305519,57793.0,57792.0,0.45136203]
[1617721950893,0.30305519,57793.0,57792.0,0.81814182]
[1617721951293,0.10705655,57794.0,57792.0,0.87956663]
[1617721951294,0.41004516,57794.0,57792.0,0.87956663]
[1617721951794,0.41004516,57794.0,57793.0,0.73385979]
[1617721952195,0.41004516,57794.0,57793.0,0.36707703]
[1617721952596,0.41004516,57794.0,57793.0,0.3056523]
[1617721952997,0.10705655,57794.0,57790.0,0.10725655]
[1617721953494,0.30275591,57793.0,57790.0,0.473894]
[1617721953994,0.10705655,57794.0,57792.0,0.30553402]
[1617721953995,0.40988538,57794.0,57792.0,0.30553402]
[1617721954194,0.40988538,57794.0,57792.0,0.43200402]
[1617721954695,0.40988538,57794.0,57793.0,1.0]
[1617721954894,0.40988538,57794.0,57793.0,1.3055275]
[1617721955296,0.30306908,57798.0,57793.0,1.67215453]
[1617721955696,0.30306908,57798.0,57797.0,0.41277117]
[1617721955997,0.30306908,57798.0,57797.0,1.41277117]
[1617721956297,0.30321284,57799.0,57797.0,1.47419314]
[1617721956497,0.30321284,57799.0,57797.0,0.47419314]
[1617721957197,0.30321284,57799.0,57798.0,0.30551305]
[1617721958806,0.30321284,57799.0,57798.0,1.30551305]
[1617721959900,0.30352294,57803.0,57798.0,1.6722036]
[1617721960404,0.36420731,57806.0,57798.0,1.12034939]
[1617721960405,0.30367183,57806.0,57798.0,1.12034939]
[1617721960708,0.30367183,57806.0,57802.0,1.0]
[1617721960904,0.55259468,57814.0,57805.0,0.36665311]
[1617721960905,0.30378579,57808.0,57805.0,0.36665311]
[1617721961103,0.30378579,57808.0,57805.0,1.50055311]
[1617721961302,0.30381314,57809.0,57807.0,1.67219731]
[1617721961604,0.30381314,57809.0,57808.0,0.10725655]